bitfinex/quotes_ETHUSD_20251127
["timestamp","ask_amount","ask_price","bid_price","bid_amount"]
[1764256653474,1.0585,3003.9,3003.8,3.32911645]
[1764256653675,0.5634,3003.9,3003.8,3.32911645]
[1764256654063,0.002,3003.9,3003.8,3.79621645]
[1764256655265,0.002,3003.9,3003.8,3.32911645]
[1764256655477,1.0605,3003.9,3003.8,3.32911645]
[1764256656062,0.3806,3003.9,3003.8,3.32911645]
[1764256656269,0.002,3003.9,3003.8,4.53460994]
[1764256656580,0.002,3003.9,3003.8,7.56184496]
[1764256656876,0.002,3003.9,3003.8,4.53460994]
[1764256657245,0.3794,3003.9,3003.8,3.32911645]
[1764256657482,0.002,3003.9,3003.8,3.32911645]
[1764256657675,0.002,3003.9,3003.8,6.92345147]
[1764256658662,0.002,3003.9,3003.8,3.89621645]
[1764256658866,0.002,3003.9,3003.8,3.92950761]
[1764256659075,0.002,3003.9,3003.8,5.10014606]
[1764256659653,0.002,3003.9,3003.8,5.00014606]
[1764256659865,0.002,3003.9,3003.8,5.10014606]
[1764256660067,0.3794,3003.9,3003.8,3.36240761]
[1764256660267,0.002,3003.9,3003.8,5.13730172]
[1764256660583,0.002,3003.9,3003.8,4.57810172]
[1764256662599,0.002,3003.9,3003.8,5.13730172]
[1764256663847,0.002,3003.9,3003.8,4.67810172]
[1764256664047,0.002,3003.9,3003.8,5.70321017]
[1764256664256,0.3993,3003.9,3003.8,5.21311017]
[1764256664479,0.002,3003.9,3003.8,5.21311017]
[1764256664662,0.002,3003.9,3003.8,5.70321017]
[1764256666655,0.002,3003.9,3003.8,9.50616856]
[1764256666856,0.002,3003.9,3003.8,9.4728774]
[1764256670185,0.0012,3003.9,3003.8,9.4728774]
[1764256670699,1.0492,3003.9,3003.8,4.05471056]
[1764256671191,1.35929669,3003.9,3003.5,3.32944897]
[1764256671485,0.485,3003.6,3003.5,3.33044897]
[1764256671693,0.79509669,3003.6,3003.5,0.001]
[1764256671988,1.16199669,3003.6,3003.5,0.001]
[1764256673177,4.49133481,3003.6,3003.5,0.001]
[1764256673415,5.2733878,3003.6,3003.5,0.001]
[1764256673587,1.94404968,3003.6,3003.5,0.001]
[1764256673959,1.16199669,3003.6,3003.5,0.001]
[1764256674587,4.49133481,3003.6,3003.5,0.001]
[1764256675686,3.99133481,3003.6,3003.5,0.001]
[1764256675874,3.99503481,3003.6,3003.5,0.001]
[1764256679986,4.43391345,3003.6,3003.5,0.001]
[1764256680186,5.220168,3003.6,3003.5,0.001]
[1764256680389,1.69632588,3003.6,3003.5,0.001]
[1764256680590,0.91007133,3003.6,3003.5,0.001]
[1764256680796,4.23940945,3003.6,3003.5,0.001]
[1764256681289,0.91007133,3003.6,3003.5,0.001]
[1764256681795,4.23940945,3003.6,3003.5,0.001]
[1764256681982,0.91007133,3003.6,3003.5,0.001]
[1764256682767,0.87669669,3003.6,3003.5,0.001]
[1764256682959,0.66569669,3003.6,3003.5,0.001]
[1764256683367,0.29879669,3003.6,3003.5,0.001]
[1764256684866,0.66289669,3003.6,3003.5,0.001]
[1764256685481,0.69627133,3003.6,3003.5,0.001]
[1764256685680,1.09882809,3003.6,3003.5,0.001]
[1764256685899,4.02560945,3003.6,3003.5,0.001]
[1764256686114,0.69627133,3003.6,3003.5,0.001]
[1764256688081,0.4091,3003.9,3003.5,0.001]
[1764256688082,0.0012,3003.9,3003.5,0.4911]
[1764256688481,0.4652,3005.7,3004.6,0.405504]
[1764256688636,1.07772877,3005.8,3004.6,0.88964872]
[1764256688637,0.4652,3005.4,3004.6,0.88964872]
[1764256688790,0.4652,3005.4,3004.6,1.10164872]
[1764256689133,0.186,3005.8,3004.6,1.37635217]
[1764256689294,0.4652,3005.7,3004.7,0.4592]
[1764256689496,0.4652,3005.7,3004.7,0.5592]
[1764256689834,3.32671024,3006.0,3004.8,6.65601702]
[1764256689987,0.002,3005.7,3004.8,9.98402553]
[1764256690191,0.002,3005.7,3004.9,2.04266902]
[1764256690527,0.4785,3005.7,3004.8,3.32800851]
[1764256691187,0.4785,3005.7,3004.8,6.65601702]
[1764256691627,0.002,3005.7,3004.9,0.4805]
[1764256693733,0.002,3005.7,3005.0,3.32778702]
[1764256693929,0.0012,3005.7,3005.1,0.1855]
[1764256694605,0.0012,3005.7,3005.0,3.80828702]
[1764256694807,0.0012,3005.7,3005.0,4.04141385]
[1764256695046,0.0012,3005.7,3005.0,7.94970087]
[1764256695346,0.0012,3005.7,3004.9,0.1855]
[1764256695519,0.4765,3005.6,3004.9,0.1855]
[1764256695716,0.4765,3005.6,3004.9,3.51338571]
[1764256696312,3.8036636,3005.6,3004.9,3.51338571]
[1764256697038,3.8036636,3005.6,3004.8,4.26552359]
[1764256697039,0.4765,3005.5,3004.8,4.26552359]
[1764256697208,0.0012,3005.7,3004.8,4.74602359]
[1764256697414,0.0012,3005.7,3004.9,0.4805]
[1764256697718,0.0012,3005.7,3005.0,3.32778702]
[1764256697917,0.0012,3005.7,3005.0,10.94438997]
[1764256698145,0.0012,3005.7,3005.6,0.474]
[1764256698635,0.0012,3005.7,3005.6,0.9545]
[1764256699142,0.0012,3005.7,3005.6,1.51003159]
[1764256699346,0.4765,3007.6,3005.6,2.01553559]
[1764256699648,3.80145537,3007.6,3006.4,0.574]
[1764256699850,3.80145537,3007.6,3006.5,0.3975]
[1764256700026,0.85664554,3007.5,3006.6,0.212]
[1764256700353,0.4765,3007.4,3006.6,0.93759411]
[1764256700555,0.4765,3007.6,3006.7,0.4805]
[1764256700850,0.4765,3007.5,3006.7,0.4805]
[1764256701052,3.90857148,3008.0,3006.8,0.4805]
[1764256701259,3.43208355,3008.0,3006.8,1.20609411]
[1764256701422,0.81970836,3007.9,3006.8,0.4805]
[1764256701827,3.80123511,3007.8,3007.0,0.72559411]
[1764256702150,0.1807,3006.9,3006.2,0.1855]
[1764256702450,0.405504,3007.6,3006.3,0.6925]
[1764256702619,0.19153566,3007.5,3006.3,0.6925]
[1764256702825,0.66803566,3007.5,3006.3,0.6925]
[1764256703249,0.19153566,3007.5,3006.4,1.20609411]
[1764256703521,9.97420533,3007.8,3006.4,0.4805]
[1764256703655,0.4765,3007.4,3006.5,0.212]
[1764256704159,0.34320836,3007.9,3006.5,0.212]
[1764256704457,0.4765,3007.5,3006.6,0.1]
[1764256704659,0.4765,3007.5,3006.6,0.5805]
[1764256705162,0.4765,3007.5,3006.6,0.4805]
[1764256705626,0.4765,3007.5,3006.5,0.212]
[1764256706048,3.32513134,3007.4,3006.6,3.32601609]
[1764256706331,3.99014819,3007.4,3006.6,3.32601609]
[1764256706863,3.99014819,3007.4,3006.5,6.86424208]
[1764256707031,0.66501685,3007.4,3006.6,0.5805]
[1764256707359,1.14151685,3007.4,3006.6,0.4805]
[1764256707581,0.4765,3007.3,3006.2,0.666]
[1764256707740,0.1076,3008.0,3006.2,0.666]
[1764256707741,3.32312578,3009.3,3007.3,0.6595]
[1764256707940,0.1076,3007.9,3007.4,3.53803871]
[1764256708261,0.002,3007.6,3007.4,3.32503871]
[1764256708565,0.002,3007.6,3007.5,0.6935]
[1764256708725,0.002,3007.6,3007.5,1.1675]
[1764256708930,0.002,3007.6,3007.5,0.687]
[1764256709661,0.0748,3007.6,3007.0,0.1855]
[1764256709830,0.0047,3007.5,3006.6,0.1855]
[1764256710025,0.0047,3007.5,3006.3,4.28881593]
[1764256710026,3.32513134,3007.4,3006.3,0.4805]
[1764256710255,7.12676268,3007.4,3006.4,0.24626237]
[1764256710457,0.4765,3007.3,3006.4,0.24626237]
[1764256710859,0.4765,3007.3,3006.4,0.213]
[1764256711163,0.71267627,3007.2,3006.4,0.213]
[1764256711367,0.71267627,3007.2,3005.6,0.55653159]
[1764256711368,0.1807,3006.5,3005.6,0.55653159]
[1764256711683,0.0011,3006.4,3005.6,0.214]
[1764256711835,0.4776,3006.4,3005.6,0.214]
[1764256712160,6.652696,3006.3,3005.6,0.214]
[1764256712457,4.0501676,3006.3,3005.6,0.214]
[1764256712659,0.4765,3006.2,3005.6,0.214]
[1764256714058,3.3265693,3006.1,3005.6,0.214]
[1764256714259,0.0731,3005.7,3005.6,0.214]
[1764256714461,0.4765,3006.0,3005.6,0.214]
[1764256714665,0.2577,3005.7,3005.6,0.001]
[1764256715932,3.32646903,3006.2,3005.6,3.80211017]
[1764256716273,4.01582191,3006.4,3005.6,3.802099]
[1764256716432,0.0731,3005.7,3005.6,0.001]
[1764256716635,0.2577,3005.7,3005.6,0.001]
[1764256717674,0.2569,3005.7,3005.6,0.001]
[1764256718537,4.05751201,3005.7,3005.6,0.001]
[1764256718731,0.7305,3005.7,3005.6,0.001]
[1764256718970,3.58391201,3005.7,3005.6,0.001]
[1764256719274,4.05751201,3005.7,3005.6,0.001]
[1764256719432,0.2569,3005.7,3005.6,0.001]
[1764256719833,4.05751201,3005.7,3005.6,0.001]
[1764256720864,0.2569,3005.7,3005.6,0.001]
[1764256722158,3.58391201,3005.7,3005.6,0.001]
[1764256722369,0.7305,3005.7,3005.6,0.001]
[1764256722782,3.32682172,3005.9,3005.6,0.001]
[1764256722971,0.30982475,3005.8,3005.6,0.001]
[1764256723172,3.32682172,3005.9,3005.6,0.001]
[1764256723368,0.30982473,3005.8,3005.6,0.001]
[1764256723572,3.32675201,3006.0,3005.6,0.001]
[1764256723748,0.3098222,3005.9,3005.6,0.001]
[1764256723954,0.3098222,3005.8,3005.6,0.001]
[1764256724163,3.32675201,3006.0,3005.6,0.001]
[1764256724480,3.82185629,3005.9,3005.6,0.001]
[1764256724682,0.30983655,3005.8,3005.6,0.001]
[1764256724884,3.32673481,3006.0,3005.6,0.001]
[1764256725181,0.3098597,3005.9,3005.6,0.001]
[1764256725387,0.3098597,3005.8,3005.6,0.001]
[1764256725551,3.32673481,3006.0,3005.6,0.001]
[1764256725753,0.4989,3005.7,3005.6,0.001]
[1764256725998,0.8087888,3005.7,3005.6,0.001]
[1764256726684,4.18560081,3005.7,3005.6,0.001]
[1764256729105,0.8087888,3005.7,3005.6,0.001]
[1764256729307,4.13580081,3005.7,3005.6,0.001]
[1764256730000,5.16238237,3005.7,3005.6,0.001]
[1764256730872,5.16238237,3005.7,3004.4,0.87963201]
[1764256730873,1.67979811,3005.6,3003.6,0.87963201]
[1764256731078,1.67979811,3005.6,3003.5,0.001]
[1764256731079,0.0994,3004.5,3003.5,0.001]
[1764256731274,0.3098888,3004.4,3003.5,0.4757]
[1764256731592,0.5218888,3004.3,3003.7,3.80386199]
[1764256731790,0.3098888,3004.2,3003.8,3.33007932]
[1764256731990,0.3098888,3004.2,3003.8,0.001]
[1764256731991,0.7956888,3004.2,3003.8,0.001]
[1764256732159,0.212,3004.3,3003.8,0.001]
[1764256732367,0.212,3004.7,3004.2,0.6888]
[1764256732571,0.30975734,3004.6,3004.2,0.6888]
[1764256732775,0.30975734,3004.5,3004.2,0.6888]
[1764256732975,0.30975734,3004.4,3004.2,0.6888]
[1764256733160,3.54013646,3004.7,3004.2,0.6888]
[1764256733384,0.0628,3004.3,3003.8,0.001]
[1764256733582,0.30953914,3004.5,3003.8,0.4757]
[1764256733988,0.30953914,3004.5,3003.8,3.80481583]
[1764256734298,0.30953914,3004.5,3003.8,0.50899116]
[1764256734478,0.30953914,3004.5,3003.8,0.4757]
[1764256734673,1.14458216,3004.5,3003.8,0.001]
[1764256734874,0.83504302,3004.5,3003.8,0.4757]
[1764256735079,3.32830632,3004.6,3003.8,0.4757]
[1764256735281,0.30931955,3004.5,3003.8,0.4757]
[1764256736995,0.2083,3003.9,3003.8,0.001]
[1764256737194,0.0628,3003.9,3003.8,0.001]
[1764256738684,0.212,3004.3,3003.8,0.4928]
[1764256738883,0.52142227,3004.3,3003.8,3.82190001]
[1764256739186,0.30942227,3004.3,3003.8,4.29660001]
[1764256739415,0.212,3004.2,3003.8,4.29660001]
[1764256740670,0.212,3004.2,3003.8,0.9675]
[1764256740914,0.212,3004.2,3003.8,0.001]
[1764256740915,4.72815563,3004.2,3003.8,0.001]
[1764256741195,0.0644,3003.9,3003.8,0.001]
[1764256741400,0.0636,3003.9,3003.8,0.001]
[1764256741569,0.5452,3003.9,3003.8,0.001]
[1764256741771,0.85515208,3003.9,3003.8,0.001]
[1764256742166,1.06715208,3003.9,3003.8,0.001]
[1764256742496,0.85515208,3003.9,3003.8,0.001]
[1764256742700,0.58555208,3003.9,3003.8,0.001]
[1764256743197,3.9145577,3003.9,3003.8,0.001]
[1764256743381,4.63890363,3003.9,3003.8,0.001]
[1764256744973,5.12050363,3003.9,3003.8,0.001]
[1764256745403,1.09789801,3003.9,3003.8,0.001]
[1764256745607,3.7025577,3003.9,3003.8,0.001]
[1764256746832,4.2835577,3003.9,3003.8,0.001]
[1764256747337,4.6890617,3003.9,3003.8,0.001]
[1764256747726,0.47295208,3003.9,3003.8,0.001]
[1764256748007,4.3961577,3003.9,3003.8,0.001]
[1764256748174,5.58410767,3003.9,3003.8,0.001]
[1764256748374,5.68350767,3003.9,3003.8,0.001]
[1764256748606,6.40910178,3003.9,3003.8,0.001]
[1764256749948,5.69219778,3003.9,3003.8,0.001]
[1764256750109,6.40910178,3003.9,3003.8,0.001]
[1764256753452,5.79159778,3003.9,3003.8,0.001]
[1764256753615,6.00359778,3003.9,3003.8,0.001]
[1764256754642,5.42259778,3003.9,3003.8,0.001]
[1764256755016,5.52199778,3003.9,3003.8,0.001]
[1764256755417,5.21059778,3003.9,3003.8,0.001]
[1764256755612,4.57655181,3003.9,3003.8,0.001]
[1764256755919,4.64355181,3003.9,3003.8,0.001]
[1764256756247,4.74295181,3003.9,3003.8,0.001]
[1764256756429,5.22035181,3003.9,3003.8,0.001]
[1764256757345,5.12095181,3003.9,3003.8,0.001]
[1764256757558,5.97587719,3003.9,3003.8,0.001]
[1764256758241,6.07527719,3003.9,3003.8,0.001]
[1764256758447,6.07590567,3003.9,3003.8,0.001]
[1764256758643,5.43210567,3003.9,3003.8,0.001]
[1764256759047,5.50320567,3003.9,3003.8,0.001]
[1764256759438,4.57718029,3003.9,3003.8,0.001]
[1764256759640,5.12158029,3003.9,3003.8,0.001]
[1764256759838,5.22098029,3003.9,3003.8,0.001]
[1764256760352,4.64828029,3003.9,3003.8,0.001]
[1764256761036,4.74768029,3003.9,3003.8,0.001]
[1764256761248,6.02863852,3003.9,3003.8,0.001]
[1764256762038,5.45593852,3003.9,3003.8,0.001]
[1764256763028,5.17483852,3003.9,3003.8,0.001]
[1764256763229,5.38683852,3003.9,3003.8,0.001]
[1764256763664,5.44113852,3003.9,3003.8,0.001]
[1764256763874,6.03053852,3003.9,3003.8,0.001]
[1764256764881,6.43604252,3003.9,3003.8,0.001]
[1764256765177,6.43524252,3003.9,3003.8,0.001]
[1764256768252,7.32022316,3003.9,3003.8,0.001]
[1764256770179,9.95024252,3003.9,3003.8,0.001]
[1764256770379,6.43524252,3003.9,3003.8,0.001]
[1764256770883,6.22324252,3003.9,3003.8,0.001]
[1764256771083,7.33277896,3003.9,3003.8,0.001]
[1764256771295,6.43524252,3003.9,3003.8,0.001]
[1764256772697,6.63104726,3003.9,3003.8,0.001]
[1764256772898,4.73208029,3003.9,3003.8,0.001]
[1764256773199,4.41199018,3003.9,3003.8,0.001]
[1764256773400,5.13758429,3003.9,3003.8,0.001]
[1764256773771,5.08328429,3003.9,3003.8,0.001]
[1764256774502,5.62758429,3003.9,3003.8,0.001]
[1764256774687,6.52323292,3003.9,3003.8,0.001]
[1764256780400,2.32332547,3003.9,3003.8,0.001]
[1764256780594,5.65233109,3003.9,3003.8,0.001]
[1764256781124,5.65433109,3003.9,3003.8,0.001]
[1764256782527,6.05983509,3003.9,3003.8,0.001]
[1764256783627,5.57413509,3003.9,3003.8,0.001]
[1764256786330,6.04023509,3003.9,3003.8,0.001]
[1764256787130,5.57413509,3003.9,3003.8,0.001]
[1764256788836,5.57333509,3003.9,3003.8,0.001]
[1764256791935,4.51908646,3003.9,3003.8,0.4545]
[1764256792132,4.61908646,3003.9,3003.8,0.4545]
[1764256792333,5.38157418,3003.9,3003.8,0.001]
[1764256792826,5.47937418,3003.9,3003.8,0.001]
[1764256793730,5.26737418,3003.9,3003.8,0.001]
[1764256794038,6.42880483,3003.9,3003.8,0.001]
[1764256797850,6.33100483,3003.9,3003.8,0.001]
[1764256799463,6.42960483,3003.9,3003.8,0.001]
[1764256800259,6.33100483,3003.9,3003.8,0.001]
[1764256801178,6.33124469,3003.9,3003.8,0.001]
[1764256801359,6.42984469,3003.9,3003.8,0.001]
[1764256801854,6.33124469,3003.9,3003.8,0.001]
[1764256802159,6.77877507,3003.9,3003.8,0.4545]
[1764256802366,6.77877507,3003.9,3003.8,0.001]
[1764256803559,3.6432332,3003.9,3003.8,0.9239]
[1764256803766,0.31422758,3003.9,3003.8,0.9239]
[1764256804666,3.6432332,3003.9,3003.8,0.9239]
[1764256804965,0.31422758,3003.9,3003.8,0.9239]
[1764256805165,0.31422758,3003.9,3003.8,1.34094944]
[1764256805334,0.31422758,3003.9,3003.8,4.67006589]
[1764256805946,0.31422758,3003.9,3003.8,1.34094944]
[1764256806442,0.31422758,3003.9,3003.8,4.25301645]
[1764256807639,0.31422758,3003.9,3003.8,0.9239]
[1764256808339,0.31422758,3003.9,3003.8,4.25301645]
[1764256810338,0.31422758,3003.9,3003.8,0.9239]
[1764256811464,0.31422758,3003.9,3003.8,0.4545]
[1764256811737,0.31422758,3003.9,3003.8,0.9125]
[1764256811939,0.31422758,3003.9,3003.8,1.33668324]
[1764256812751,0.31342758,3003.9,3003.8,1.33668324]
[1764256813275,0.31342758,3003.9,3003.8,0.9125]
[1764256814253,0.31342758,3003.9,3003.8,0.4545]
[1764256814455,3.7246332,3003.9,3003.8,0.001]
[1764256814654,7.84322168,3003.9,3003.8,0.001]
[1764256814862,9.12791406,3003.9,3003.8,0.001]
[1764256815155,9.53341806,3003.9,3003.8,0.001]
[1764256815554,9.99721806,3003.9,3003.8,0.001]
[1764256816374,9.53341806,3003.9,3003.8,0.001]
[1764256819459,9.99721806,3003.9,3003.8,0.001]
[1764256821162,8.79931406,3003.9,3003.8,0.4697]
[1764256821359,5.65271969,3003.9,3003.8,0.4697]
[1764256821691,9.12911406,3003.9,3003.8,0.001]
[1764256825297,9.59161406,3003.9,3003.8,0.001]
[1764256826205,9.12911406,3003.9,3003.8,0.001]
[1764256826688,9.59161406,3003.9,3003.8,0.001]
[1764256828009,8.98591406,3003.9,3003.8,0.001]
[1764256828180,5.73931969,3003.9,3003.8,0.001]
[1764256828503,5.65271969,3003.9,3003.8,0.001]
[1764256831408,4.46802731,3003.9,3003.8,0.4697]
[1764256831607,4.46802731,3003.9,3003.8,0.9277]
[1764256831998,4.57902731,3003.9,3003.8,0.9277]
[1764256836127,4.67902731,3003.9,3003.8,0.9277]
[1764256836524,4.67822731,3003.9,3003.8,0.9277]
[1764256836836,4.67822731,3003.9,3003.8,0.001]
[1764256836837,8.80773462,3003.9,3003.8,0.001]
[1764256837213,7.92482168,3003.9,3003.8,0.001]
[1764256837437,7.92482168,3003.9,3003.8,0.4697]
[1764256838525,8.01082168,3003.9,3003.8,0.001]
[1764256838761,8.61712168,3003.9,3003.8,0.001]
[1764256838917,8.15722168,3003.9,3003.8,0.001]
[1764256839118,9.30583405,3003.9,3003.8,0.001]
[1764256839716,9.15943405,3003.9,3003.8,0.001]
[1764256839913,4.67822731,3003.9,3003.8,0.4697]
[1764256840231,4.75602731,3003.9,3003.8,0.001]
[1764256841141,8.00262168,3003.9,3003.8,0.001]
[1764256841449,8.14962168,3003.9,3003.8,0.001]
[1764256842012,8.00262168,3003.9,3003.8,0.001]
[1764256842510,9.4176684,3003.9,3003.8,0.001]
[1764256842714,9.8946684,3003.9,3003.8,0.001]
[1764256842928,9.2781644,3003.9,3003.8,0.001]
[1764256843229,9.2781644,3003.9,3003.8,0.4807]
[1764256843230,9.4113644,3003.9,3003.8,0.4807]
[1764256843638,8.08556202,3003.9,3003.8,0.4807]
[1764256843803,8.18556202,3003.9,3003.8,0.9567]
[1764256844128,8.18556202,3003.9,3003.8,0.4807]
[1764256844830,8.67626202,3003.9,3003.8,0.001]
[1764256845804,8.82236202,3003.9,3003.8,0.001]
[1764256846004,10.12726471,3003.9,3003.8,0.001]
[1764256846639,13.56310342,3003.9,3003.8,0.001]
[1764256846813,13.62270342,3003.9,3003.8,0.001]
[1764256847133,14.81700052,3003.9,3003.8,0.001]
[1764256847503,14.81700052,3003.9,3003.5,0.001]
[1764256847504,4.014504,3003.6,3003.5,0.001]
[1764256847829,11.60369511,3003.6,3003.5,0.001]
[1764256848036,11.79672384,3003.6,3003.5,0.001]
[1764256848243,12.99507178,3003.6,3003.5,0.001]
[1764256848805,16.3244099,3003.6,3003.5,0.001]
[1764256849043,15.34563262,3003.6,3003.5,0.001]
[1764256850123,17.65628468,3003.6,3003.5,0.001]
[1764256850330,17.65583043,3003.6,3003.5,0.001]
[1764256853256,10.63935701,3003.6,3003.5,0.4807]
[1764256853438,7.06114616,3003.6,3003.5,0.001]
[1764256853642,7.78674027,3003.6,3003.5,0.001]
[1764256854151,4.57770556,3003.6,3003.5,0.9567]
[1764256854316,3.64111145,3003.6,3003.5,0.9567]
[1764256854517,3.85179447,3003.6,3003.5,0.9567]
[1764256854713,4.57738858,3003.6,3003.5,0.9567]
[1764256855448,3.64079447,3003.6,3003.5,0.9567]
[1764256855655,0.31145635,3003.6,3003.5,0.9567]
[1764256857319,3.64079447,3003.6,3003.5,0.9567]
[1764256858731,0.31145635,3003.6,3003.5,0.9567]
[1764256858929,3.64079447,3003.6,3003.5,0.9567]
[1764256860159,3.63999447,3003.6,3003.5,0.9567]
[1764256860453,0.31065635,3003.6,3003.5,0.9567]
[1764256861149,0.31065635,3003.6,3003.5,4.28614897]
[1764256861350,0.31065635,3003.6,3003.5,8.38118731]
[1764256862133,0.0004,3003.9,3003.5,2.02140363]
[1764256862333,0.0004,3003.9,3003.8,0.4797]
[1764256862730,0.0004,3003.9,3003.8,0.9557]
[1764256865625,0.0004,3003.9,3003.8,4.28481645]
[1764256865953,0.0004,3003.9,3003.8,7.31515116]
[1764256866158,0.0004,3003.9,3003.8,4.28481645]
[1764256866456,0.0004,3003.9,3003.8,5.35925417]
[1764256868367,0.002,3004.3,3004.1,0.664]
[1764256868570,0.89712907,3006.9,3005.1,6.06066942]
[1764256868813,1.34534794,3007.1,3006.1,3.03033471]
[1764256868814,0.1,3006.7,3006.1,3.03033471]
[1764256868925,0.1,3006.7,3005.8,0.1843]
[1764256868926,0.211,3007.0,3006.2,0.476]
[1764256869272,0.89238426,3007.0,3006.2,0.476]
[1764256869479,1.61797837,3007.0,3006.2,0.476]
[1764256870126,3.32502078,3007.5,3006.9,0.4797]
[1764256870327,3.32502078,3007.5,3007.0,0.4662]
[1764256870328,3.32524191,3007.3,3007.0,0.4662]
[1764256870583,3.32524191,3007.3,3007.1,0.1834]
[1764256870726,4.05083602,3007.3,3007.2,0.4662]
[1764256870932,8.27828044,3007.3,3006.9,0.1834]
[1764256871167,0.1,3007.2,3006.9,0.1834]
[1764256871344,7.55268633,3007.3,3006.9,0.1834]
[1764256871546,7.38808633,3007.3,3006.9,0.6599]
[1764256871962,7.38808633,3007.3,3006.9,0.1834]
[1764256872161,1.09243025,3007.2,3006.6,0.6599]
[1764256872327,0.1,3007.1,3006.6,0.6599]
[1764256872955,6.65092614,3007.1,3006.7,0.451]
[1764256873395,3.32546307,3007.1,3006.7,0.451]
[1764256873607,3.32546307,3007.1,3006.6,0.1834]
[1764256873608,6.65092614,3007.1,3006.6,0.1834]
[1764256873776,0.97609261,3007.0,3006.6,0.1834]
[1764256874357,0.4746,3006.7,3006.1,0.1907]
[1764256874674,0.147,3006.9,3005.8,0.1843]
[1764256874675,0.1,3006.3,3005.8,0.1843]
[1764256874982,0.211,3006.2,3005.8,0.1843]
[1764256875192,3.53749188,3006.2,3005.9,0.451]
[1764256875488,3.32649188,3006.2,3006.1,0.6771]
[1764256875784,4.01287613,3006.2,3005.9,0.451]
[1764256875987,3.32649188,3006.2,3006.1,0.4864]
[1764256876487,3.53739474,3006.3,3006.1,1.1281]
[1764256876688,3.32639474,3006.3,3006.2,0.4864]
[1764256876885,6.65278948,3006.3,3005.8,0.6353]
[1764256877087,6.75278948,3006.3,3005.8,0.6353]
[1764256877259,0.67527895,3006.2,3005.8,0.6353]
[1764256877756,0.67527895,3006.2,3004.7,4.04146986]
[1764256877757,0.67527895,3006.2,3005.6,0.1907]
[1764256877955,0.311,3006.1,3005.6,0.1907]
[1764256878361,0.311,3006.1,3005.7,0.451]
[1764256878871,0.211,3006.1,3005.7,0.451]
[1764256879293,3.32667997,3006.0,3005.7,0.451]
[1764256879795,0.93659411,3006.3,3005.9,0.4864]
[1764256880089,0.4706,3006.0,3005.6,0.1907]
[1764256880291,0.211,3005.9,3005.6,0.1907]
[1764256881289,3.32690132,3005.8,3005.2,0.451]
[1764256882692,3.32690132,3005.8,3005.7,0.4864]
[1764256883195,3.32690132,3005.8,3005.7,0.9374]
[1764256883999,3.32610132,3005.8,3005.7,0.9374]
[1764256884298,3.32610132,3005.8,3005.4,0.451]
[1764256884299,0.68658944,3005.8,3005.4,0.451]
[1764256884493,0.68658944,3005.8,3005.0,0.1843]
[1764256884494,0.78658944,3005.8,3005.0,0.21757787]
[1764256884666,0.68658944,3005.8,3005.0,0.6353]
[1764256884870,0.78658944,3005.8,3005.0,0.6353]
[1764256885170,0.30851112,3005.7,3005.1,0.451]
[1764256885366,0.30851112,3005.7,3005.1,7.1063326]
[1764256885576,0.002,3006.0,3005.6,0.4864]
[1764256885577,3.53969692,3006.0,3005.6,0.4864]
[1764256885780,0.30854953,3005.9,3005.6,0.4864]
[1764256885978,0.30854953,3005.9,3005.6,0.9374]
[1764256886809,3.32690132,3005.8,3005.6,0.9374]
[1764256887099,1.79067369,3005.7,3005.0,0.1843]
[1764256887270,0.30854953,3005.6,3005.0,0.6353]
[1764256887699,0.30854953,3005.6,3005.1,0.451]
[1764256887897,0.30854953,3005.6,3005.5,0.4864]
[1764256888075,0.30854953,3005.6,3005.5,0.9374]
[1764256889002,3.63567223,3005.6,3005.5,0.4864]
[1764256890889,0.30854953,3005.6,3005.5,0.9374]
[1764256892170,0.30854953,3005.6,3005.5,1.36719675]
[1764256892371,0.30854953,3005.6,3005.5,0.9374]
[1764256892697,0.002,3006.0,3005.5,4.2646334]
[1764256892894,0.002,3006.0,3005.9,0.4864]
[1764256893091,0.31167358,3006.0,3005.9,0.4864]
[1764256893294,0.31167358,3006.0,3005.9,0.9374]
[1764256894701,0.31167358,3006.0,3005.4,3.32733492]
[1764256894702,3.69865355,3006.0,3005.6,0.451]
[1764256894891,3.32867997,3006.0,3005.9,0.4864]
[1764256895199,3.6387391,3006.0,3005.9,0.4864]
[1764256896984,7.74764219,3006.0,3005.3,0.451]
[1764256897274,0.31005913,3005.9,3005.3,0.211]
[1764256897474,0.31005913,3005.8,3005.4,0.451]
[1764256897685,0.31005913,3005.7,3005.4,0.451]
[1764256897887,0.31005913,3005.6,3005.4,0.451]
[1764256898103,0.31005913,3005.5,3005.4,0.451]
[1764256898605,0.31005913,3005.5,3005.4,0.9374]
[1764256899603,0.31005913,3005.5,3005.4,4.26474411]
[1764256899772,0.31005913,3005.5,3005.4,0.9374]
[1764256899972,0.31005913,3005.5,3005.4,0.4864]
[1764256901501,3.71249253,3005.5,3005.0,0.1843]
[1764256901702,0.31005913,3005.4,3005.0,0.1843]
[1764256902008,0.31005913,3005.3,3005.1,0.50247676]
[1764256902174,0.31005913,3005.2,3005.1,0.50247676]
[1764256902509,0.31005913,3005.2,3005.1,0.4692]
[1764256902805,0.31005913,3005.2,3005.1,0.9533]
[1764256903608,0.31005913,3005.2,3004.8,0.8755]
[1764256903783,0.31005913,3005.1,3004.9,0.03327897]
[1764256904105,0.31005913,3005.0,3004.9,1.25895939]
[1764256904303,0.31005913,3005.0,3004.9,0.78975939]
[1764256904609,0.31005913,3005.0,3004.9,1.27385939]
[1764256905004,0.31005913,3005.0,3004.9,1.74305939]
[1764256905700,0.31005913,3005.0,3004.9,5.07095715]
[1764256906511,0.002,3006.0,3005.5,0.1]
[1764256906705,0.002,3006.0,3005.9,0.4841]